[Event "*** Titled Tuesday Blitz"]
[Site "Chess.com"]
[Date "2020.03.03"]
[Round "9"]
[White "Man-Chuk"]
[Black "Astaneh"]
[Result "1-0"]
[WhiteElo "2778"]
[BlackElo "2619"]
[TimeControl "180+1"]
[EndTime "10:40:20 PST"]
[Termination "Man-Chuk won by resignation"]

1. d4 {[%clk 0:02:55.4]} 1... Nf6 {[%clk 0:02:59.8]} 2. c4 {[%clk 0:02:53.7]}
2... g6 {[%clk 0:02:59.4]} 3. Nc3 {[%clk 0:02:50.8]} 3... d5 {[%clk 0:02:59.1]}
4. Bf4 {[%clk 0:02:46.9]} 4... Bg7 {[%clk 0:02:59]} 5. e3 {[%clk 0:02:46.7]}
5... O-O {[%clk 0:02:58.8]} 6. Rc1 {[%clk 0:02:46.5]} 6... c5 {[%clk 0:02:55.4]}
7. dxc5 {[%clk 0:02:45.4]} 7... Qa5 {[%clk 0:02:55.6]} 8. cxd5 {[%clk 0:02:45]}
8... Ne4 {[%clk 0:02:55.7]} 9. Ne2 {[%clk 0:02:40.8]} 9... Rd8 {[%clk
0:02:48.8]} 10. a3 {[%clk 0:02:28.1]} 10... Nxc3 {[%clk 0:02:40.5]} 11. Nxc3
{[%clk 0:02:23.6]} 11... Qxc5 {[%clk 0:02:39.2]} 12. Nb5 {[%clk 0:02:20.3]}
12... Na6 {[%clk 0:02:33.6]} 13. Rxc5 {[%clk 0:02:15.6]} 13... Nxc5 {[%clk
0:02:33.2]} 14. Be2 {[%clk 0:02:13]} 14... a6 {[%clk 0:02:22]} 15. Nc7 {[%clk
0:02:09.5]} 15... Ra7 {[%clk 0:02:22.4]} 16. O-O {[%clk 0:02:07.3]} 16... b6
{[%clk 0:02:22]} 17. Qc1 {[%clk 0:01:49.7]} 17... Bf5 {[%clk 0:02:17.5]} 18. Rd1
{[%clk 0:01:47.3]} 18... Rc8 {[%clk 0:01:54.9]} 19. g4 {[%clk 0:01:46.3]} 19...
Bd7 {[%clk 0:01:53.6]} 20. h3 {[%clk 0:01:29.8]} 20... Na4 {[%clk 0:01:47.3]}
21. Bxa6 {[%clk 0:01:19.7]} 21... Rxa6 {[%clk 0:01:45]} 22. Nxa6 {[%clk
0:01:19.7]} 22... Rxc1 {[%clk 0:01:45.9]} 23. Rxc1 {[%clk 0:01:19.1]} 23... Bb5
{[%clk 0:01:45]} 24. Rc8+ {[%clk 0:01:17]} 1-0

[Event "*** Titled Tuesday Blitz"]
[Site "Chess.com"]
[Date "2020.03.03"]
[Round "9"]
[White "MiroVlasenko"]
[Black "guillembaches"]
[Result "1-0"]
[WhiteElo "2624"]
[BlackElo "2417"]
[TimeControl "180+1"]
[EndTime "10:41:02 PST"]
[Termination "MiroVlasenko won by resignation"]

1. e4 {[%clk 0:03:00]} 1... c5 {[%clk 0:02:59.7]} 2. Nc3 {[%clk 0:02:59.6]} 2...
d6 {[%clk 0:02:59.7]} 3. f4 {[%clk 0:02:59.2]} 3... g6 {[%clk 0:02:58.1]} 4. Nf3
{[%clk 0:02:59.7]} 4... Bg7 {[%clk 0:02:57.7]} 5. Bb5+ {[%clk 0:02:59.2]} 5...
Bd7 {[%clk 0:02:56.8]} 6. Bc4 {[%clk 0:02:59.5]} 6... Nc6 {[%clk 0:02:49.8]} 7.
d3 {[%clk 0:02:59.3]} 7... a6 {[%clk 0:02:34.4]} 8. a3 {[%clk 0:02:54.2]} 8...
b5 {[%clk 0:02:32]} 9. Ba2 {[%clk 0:02:53.9]} 9... e6 {[%clk 0:02:31.8]} 10. f5
{[%clk 0:02:50.4]} 10... Nge7 {[%clk 0:02:27.7]} 11. O-O {[%clk 0:02:48.1]}
11... b4 {[%clk 0:02:08.6]} 12. axb4 {[%clk 0:02:45]} 12... cxb4 {[%clk
0:02:04.5]} 13. Ne2 {[%clk 0:02:44.6]} 13... gxf5 {[%clk 0:01:31.3]} 14. Qe1
{[%clk 0:02:38.8]} 14... Qb6+ {[%clk 0:01:27.2]} 15. Kh1 {[%clk 0:02:37.5]}
15... O-O-O {[%clk 0:01:27]} 16. Ng3 {[%clk 0:02:23.2]} 16... h5 {[%clk
0:01:15.4]} 17. Be3 {[%clk 0:02:18.4]} 17... Nd4 {[%clk 0:00:55]} 18. exf5
{[%clk 0:02:09.9]} 18... h4 {[%clk 0:00:34.1]} 19. fxe6 {[%clk 0:02:09.7]} 19...
fxe6 {[%clk 0:00:27.7]} 20. Ne2 {[%clk 0:02:02.5]} 20... Nef5 {[%clk 0:00:27.4]}
21. Nexd4 {[%clk 0:02:00.2]} 21... Bxd4 {[%clk 0:00:27.4]} 22. Nxd4 {[%clk
0:01:55.4]} 1-0

[Event "*** Titled Tuesday Blitz"]
[Site "Chess.com"]
[Date "2020.03.03"]
[Round "9"]
[White "GMKrikor"]
[Black "IMDT02"]
[Result "1-0"]
[WhiteElo "2805"]
[BlackElo "2478"]
[TimeControl "180+1"]
[EndTime "10:41:37 PST"]
[Termination "GMKrikor won by resignation"]

1. Nf3 {[%clk 0:03:00.9]} 1... Nf6 {[%clk 0:02:59.6]} 2. c4 {[%clk 0:03:00.4]}
2... g6 {[%clk 0:03:00.1]} 3. Nc3 {[%clk 0:02:59.8]} 3... Bg7 {[%clk 0:03:00.7]}
4. e4 {[%clk 0:02:58.9]} 4... d6 {[%clk 0:03:01.3]} 5. d4 {[%clk 0:02:58.9]}
5... O-O {[%clk 0:03:02]} 6. h3 {[%clk 0:02:57.9]} 6... Na6 {[%clk 0:02:57]} 7.
Be3 {[%clk 0:02:56.7]} 7... c6 {[%clk 0:02:54.5]} 8. Be2 {[%clk 0:02:47.9]} 8...
Nc7 {[%clk 0:02:46.6]} 9. O-O {[%clk 0:02:44.2]} 9... e5 {[%clk 0:02:43.3]} 10.
d5 {[%clk 0:02:44.2]} 10... c5 {[%clk 0:02:43.2]} 11. Nd2 {[%clk 0:02:34.7]}
11... Re8 {[%clk 0:02:40.7]} 12. a3 {[%clk 0:02:33.6]} 12... b6 {[%clk
0:02:30.1]} 13. b4 {[%clk 0:02:33.3]} 13... Bd7 {[%clk 0:02:30.5]} 14. Rb1
{[%clk 0:02:19.1]} 14... Qe7 {[%clk 0:02:29.5]} 15. Qc2 {[%clk 0:02:04.4]} 15...
h5 {[%clk 0:02:27.2]} 16. bxc5 {[%clk 0:01:51.6]} 16... bxc5 {[%clk 0:02:26.7]}
17. Rb7 {[%clk 0:01:52]} 17... Qd8 {[%clk 0:02:25.3]} 18. Rfb1 {[%clk
0:01:49.9]} 18... Qc8 {[%clk 0:02:09.3]} 19. Kh2 {[%clk 0:01:42.2]} 19... Nh7
{[%clk 0:01:58.6]} 20. Bd1 {[%clk 0:01:22.3]} 20... f5 {[%clk 0:01:56.2]} 21.
exf5 {[%clk 0:01:23.2]} 21... gxf5 {[%clk 0:01:57.1]} 22. Bxh5 {[%clk
0:01:21.7]} 22... f4 {[%clk 0:01:55.3]} 23. Bxe8 {[%clk 0:01:21.1]} 23... Nxe8
{[%clk 0:01:50.6]} 24. Bxc5 {[%clk 0:01:10.2]} 24... Qxc5 {[%clk 0:01:36.1]} 25.
Rxd7 {[%clk 0:01:03.8]} 25... Qxf2 {[%clk 0:01:35.8]} 26. Nce4 {[%clk
0:01:03.2]} 26... Qh4 {[%clk 0:01:34.1]} 27. Nf3 {[%clk 0:00:59.5]} 27... Qh6
{[%clk 0:01:32.6]} 28. Rbb7 {[%clk 0:00:58.4]} 28... Rc8 {[%clk 0:01:31.8]} 29.
c5 {[%clk 0:00:53.4]} 29... dxc5 {[%clk 0:01:28.5]} 30. d6 {[%clk 0:00:54]}
30... Qg6 {[%clk 0:01:24.4]} 31. Qc4+ {[%clk 0:00:53.1]} 31... Kh8 {[%clk
0:01:24.1]} 32. Re7 {[%clk 0:00:45.4]} 32... Nef6 {[%clk 0:01:20.4]} 33. Rxg7
{[%clk 0:00:39.7]} 1-0

[Event "*** Titled Tuesday Blitz"]
[Site "Chess.com"]
[Date "2020.03.03"]
[Round "9"]
[White "adricalderon8"]
[Black "Witik"]
[Result "0-1"]
[WhiteElo "2429"]
[BlackElo "2652"]
[TimeControl "180+1"]
[EndTime "10:41:38 PST"]
[Termination "Witik won by resignation"]

1. e4 {[%clk 0:03:00.9]} 1... c6 {[%clk 0:02:59.9]} 2. d4 {[%clk 0:03:00.1]}
2... d5 {[%clk 0:03:00.5]} 3. Nc3 {[%clk 0:03:00.7]} 3... dxe4 {[%clk 0:03:01]}
4. Nxe4 {[%clk 0:03:00.9]} 4... Nf6 {[%clk 0:03:01.9]} 5. Nxf6+ {[%clk
0:03:00.9]} 5... exf6 {[%clk 0:03:02.8]} 6. Nf3 {[%clk 0:03:01.5]} 6... Bd6
{[%clk 0:03:03.2]} 7. Be2 {[%clk 0:03:01.2]} 7... O-O {[%clk 0:03:03.2]} 8. O-O
{[%clk 0:03:01.9]} 8... Re8 {[%clk 0:03:04.1]} 9. Re1 {[%clk 0:03:01.3]} 9...
Nd7 {[%clk 0:03:04.2]} 10. c4 {[%clk 0:02:59.8]} 10... Nf8 {[%clk 0:03:04.2]}
11. Be3 {[%clk 0:02:58.9]} 11... Ng6 {[%clk 0:03:01.9]} 12. g3 {[%clk 0:02:58]}
12... Bh3 {[%clk 0:02:52.4]} 13. Bf1 {[%clk 0:02:57.9]} 13... Qd7 {[%clk
0:02:48.9]} 14. Bg2 {[%clk 0:02:57.3]} 14... h5 {[%clk 0:02:43.6]} 15. Qe2
{[%clk 0:02:43.9]} 15... Bxg2 {[%clk 0:02:21.1]} 16. Kxg2 {[%clk 0:02:43.5]}
16... h4 {[%clk 0:02:19.6]} 17. Nd2 {[%clk 0:02:38.8]} 17... b5 {[%clk
0:02:10.8]} 18. b3 {[%clk 0:02:35.6]} 18... Bb4 {[%clk 0:02:09.9]} 19. Rad1
{[%clk 0:02:31]} 19... Qf5 {[%clk 0:01:51]} 20. Qf3 {[%clk 0:02:26.9]} 20... h3+
{[%clk 0:01:50.7]} 21. Kg1 {[%clk 0:02:24.7]} 21... Qxf3 {[%clk 0:01:50.7]} 22.
Nxf3 {[%clk 0:02:25.4]} 22... Bxe1 {[%clk 0:01:51.3]} 23. Nxe1 {[%clk
0:02:25.8]} 23... bxc4 {[%clk 0:01:39.2]} 24. bxc4 {[%clk 0:02:25.9]} 24... a5
{[%clk 0:01:27]} 25. Nd3 {[%clk 0:02:25.9]} 25... Ne7 {[%clk 0:01:02.6]} 26. g4
{[%clk 0:02:24.8]} 26... f5 {[%clk 0:00:58]} 27. f3 {[%clk 0:02:25.2]} 27...
fxg4 {[%clk 0:00:56.9]} 28. fxg4 {[%clk 0:02:25.5]} 28... Ng6 {[%clk 0:00:52.3]}
29. Kf2 {[%clk 0:02:23.7]} 29... Re4 {[%clk 0:00:47.1]} 30. Nc5 {[%clk
0:02:12.6]} 30... Rxg4 {[%clk 0:00:45.9]} 31. Kf3 {[%clk 0:02:13.2]} 31... Rg2
{[%clk 0:00:43.6]} 32. d5 {[%clk 0:02:13.5]} 32... Ne5+ {[%clk 0:00:38.2]} 33.
Ke4 {[%clk 0:02:14]} 33... Nxc4 {[%clk 0:00:38.5]} 34. dxc6 {[%clk 0:02:14.5]}
34... Re8+ {[%clk 0:00:38]} 35. Kd4 {[%clk 0:02:14.4]} 35... Nxe3 {[%clk
0:00:35.3]} 36. Rb1 {[%clk 0:02:14.6]} 36... Rd2+ {[%clk 0:00:30.9]} 37. Kc3
{[%clk 0:02:10.2]} 37... Rc2+ {[%clk 0:00:30.2]} 38. Kd4 {[%clk 0:02:09.9]}
38... Nf5+ {[%clk 0:00:22.5]} 39. Kd5 {[%clk 0:02:09.1]} 39... Ne7+ {[%clk
0:00:18.6]} 40. Kd6 {[%clk 0:02:09]} 40... Nxc6 {[%clk 0:00:19]} 0-1

[Event "*** Titled Tuesday Blitz"]
[Site "Chess.com"]
[Date "2020.03.03"]
[Round "9"]
[White "Kotofeyca"]
[Black "davserr65"]
[Result "1/2-1/2"]
[WhiteElo "2333"]
[BlackElo "2065"]
[TimeControl "180+1"]
[EndTime "10:41:52 PST"]
[Termination "Game drawn by agreement"]

1. d4 {[%clk 0:02:57.4]} 1... Nf6 {[%clk 0:02:59.7]} 2. c4 {[%clk 0:02:56.6]}
2... g6 {[%clk 0:02:59.9]} 3. f3 {[%clk 0:02:56.6]} 3... d5 {[%clk 0:02:58.8]}
4. cxd5 {[%clk 0:02:56.4]} 4... Nxd5 {[%clk 0:02:59.4]} 5. e4 {[%clk 0:02:57.2]}
5... Nb6 {[%clk 0:03:00]} 6. Nc3 {[%clk 0:02:57.7]} 6... Bg7 {[%clk 0:03:00.3]}
7. Be3 {[%clk 0:02:58.4]} 7... O-O {[%clk 0:03:00.4]} 8. Qd2 {[%clk 0:02:59]}
8... Nc6 {[%clk 0:03:00.2]} 9. O-O-O {[%clk 0:02:58.4]} 9... e5 {[%clk
0:02:58.7]} 10. d5 {[%clk 0:02:58.6]} 10... Nd4 {[%clk 0:02:58.9]} 11. Nb5
{[%clk 0:02:58.8]} 11... Nxb5 {[%clk 0:02:57.1]} 12. Bxb5 {[%clk 0:02:59.7]}
12... a6 {[%clk 0:02:56.4]} 13. Be2 {[%clk 0:02:54.3]} 13... Bd7 {[%clk
0:02:45.5]} 14. h4 {[%clk 0:02:53.5]} 14... Bb5 {[%clk 0:02:45.2]} 15. h5 {[%clk
0:02:41.6]} 15... Re8 {[%clk 0:02:43.5]} 16. Bh6 {[%clk 0:02:29.6]} 16... Bh8
{[%clk 0:02:41.8]} 17. hxg6 {[%clk 0:02:24.6]} 17... hxg6 {[%clk 0:02:41.4]} 18.
Kb1 {[%clk 0:02:02.6]} 18... c6 {[%clk 0:02:35.3]} 19. d6 {[%clk 0:01:57.2]}
19... Qd7 {[%clk 0:02:28.3]} 20. Be3 {[%clk 0:01:50]} 20... Nc4 {[%clk
0:02:24.2]} 21. Bxc4 {[%clk 0:01:45.8]} 21... Bxc4 {[%clk 0:02:24.4]} 22. g4
{[%clk 0:01:35.9]} 22... Bg7 {[%clk 0:02:17.2]} 23. Qh2 {[%clk 0:01:31.9]} 23...
Rad8 {[%clk 0:01:59.1]} 24. Qh7+ {[%clk 0:01:31.1]} 24... Kf8 {[%clk 0:01:59.6]}
25. Bh6 {[%clk 0:01:30.9]} 25... f6 {[%clk 0:01:59.8]} 26. Qh8+ {[%clk
0:01:27.7]} 26... Bg8 {[%clk 0:01:57.8]} 27. Ne2 {[%clk 0:01:16]} 27... Bxh6
{[%clk 0:01:57.5]} 28. Qxh6+ {[%clk 0:01:12.9]} 28... Qg7 {[%clk 0:01:58]} 29.
Qe3 {[%clk 0:01:07.9]} 29... Qf7 {[%clk 0:01:56.7]} 30. b3 {[%clk 0:00:47.6]}
30... Rd7 {[%clk 0:01:51.5]} 31. Rd2 {[%clk 0:00:40.4]} 31... Red8 {[%clk
0:01:46.4]} 32. Rhd1 {[%clk 0:00:39.6]} 32... Qe6 {[%clk 0:01:32.4]} 33. Qh6+
{[%clk 0:00:38.4]} 33... Kf7 {[%clk 0:01:28.6]} 1/2-1/2

[Event "*** Titled Tuesday Blitz"]
[Site "Chess.com"]
[Date "2020.03.03"]
[Round "9"]
[White "FairChess_on_YouTube"]
[Black "NTBT_DHS"]
[Result "1-0"]
[WhiteElo "3033"]
[BlackElo "2710"]
[TimeControl "180+1"]
[EndTime "10:41:59 PST"]
[Termination "FairChess_on_YouTube won by resignation"]

1. c4 {[%clk 0:02:57.8]} 1... Nf6 {[%clk 0:03:00]} 2. Nc3 {[%clk 0:02:57.7]}
2... g6 {[%clk 0:03:00.5]} 3. d4 {[%clk 0:02:57.8]} 3... Bg7 {[%clk 0:03:00.9]}
4. e4 {[%clk 0:02:57.7]} 4... O-O {[%clk 0:03:01.8]} 5. h3 {[%clk 0:02:58]} 5...
d6 {[%clk 0:03:02.3]} 6. Be3 {[%clk 0:02:58.4]} 6... e5 {[%clk 0:03:02.2]} 7. d5
{[%clk 0:02:58]} 7... Nh5 {[%clk 0:02:58]} 8. g3 {[%clk 0:02:57.5]} 8... Qe8
{[%clk 0:02:58.2]} 9. Be2 {[%clk 0:02:57.3]} 9... f5 {[%clk 0:02:53.1]} 10. exf5
{[%clk 0:02:56.5]} 10... Nf6 {[%clk 0:02:16.7]} 11. fxg6 {[%clk 0:02:54.1]}
11... Qxg6 {[%clk 0:02:17.6]} 12. Nf3 {[%clk 0:02:51.6]} 12... Na6 {[%clk
0:02:14.1]} 13. Nh4 {[%clk 0:02:42]} 13... Qf7 {[%clk 0:02:14]} 14. g4 {[%clk
0:02:42.2]} 14... Nc5 {[%clk 0:02:11.8]} 15. Qc2 {[%clk 0:02:40.2]} 15... a5
{[%clk 0:02:07.2]} 16. O-O-O {[%clk 0:02:39.8]} 16... a4 {[%clk 0:01:58]} 17. g5
{[%clk 0:02:39.5]} 17... Nfd7 {[%clk 0:01:56.4]} 18. g6 {[%clk 0:02:39.5]} 18...
hxg6 {[%clk 0:01:53.8]} 19. Nxg6 {[%clk 0:02:40.4]} 19... Re8 {[%clk 0:01:54.2]}
20. Rdg1 {[%clk 0:02:40.2]} 20... e4 {[%clk 0:01:50.9]} 21. Bh5 {[%clk
0:02:36.3]} 21... Qf6 {[%clk 0:01:45.4]} 22. Nf4 {[%clk 0:02:30.7]} 22... Re7
{[%clk 0:01:22.9]} 23. Be2 {[%clk 0:02:30.4]} 23... a3 {[%clk 0:01:20.7]} 24.
Nh5 {[%clk 0:02:29.3]} 24... axb2+ {[%clk 0:01:20.4]} 25. Qxb2 {[%clk
0:02:29.5]} 25... Qe5 {[%clk 0:01:04.6]} 26. Bh6 {[%clk 0:02:26.6]} 26... Rxa2
{[%clk 0:00:41.2]} 27. Bxg7 {[%clk 0:02:26.3]} 27... Rxg7 {[%clk 0:00:39.5]} 28.
Nxa2 {[%clk 0:02:20.8]} 28... Rxg1+ {[%clk 0:00:22.1]} 29. Rxg1+ {[%clk
0:02:20]} 29... Kf8 {[%clk 0:00:22.7]} 30. h4 {[%clk 0:02:05.4]} 30... Na4
{[%clk 0:00:09]} 31. Qxe5 {[%clk 0:02:04.3]} 31... Nxe5 {[%clk 0:00:09.9]} 32.
Nf6 {[%clk 0:02:03.6]} 32... Bf5 {[%clk 0:00:09.1]} 33. h5 {[%clk 0:02:03.7]}
33... Kf7 {[%clk 0:00:08.6]} 34. Ng8 {[%clk 0:02:03.3]} 34... Bh7 {[%clk
0:00:07.9]} 35. Nh6+ {[%clk 0:02:03.2]} 35... Kf8 {[%clk 0:00:08.3]} 36. Ng4
{[%clk 0:02:03]} 36... Nd7 {[%clk 0:00:08.3]} 37. Ne3 {[%clk 0:02:02.8]} 37...
Nac5 {[%clk 0:00:08.4]} 38. Nc3 {[%clk 0:02:02.2]} 38... Ne5 {[%clk 0:00:08.4]}
39. Nb5 {[%clk 0:02:00.3]} 39... Na6 {[%clk 0:00:07.5]} 40. Nd4 {[%clk
0:01:59.8]} 40... Kf7 {[%clk 0:00:06.7]} 41. Ne6 {[%clk 0:01:59.8]} 41... Kf6
{[%clk 0:00:07.2]} 42. Rg7 {[%clk 0:01:57]} 42... Bf5 {[%clk 0:00:06.1]} 43.
Nxf5 {[%clk 0:01:57]} 43... Kxf5 {[%clk 0:00:06.6]} 44. h6 {[%clk 0:01:57.5]}
44... Nb4 {[%clk 0:00:04.9]} 45. h7 {[%clk 0:01:57.7]} 1-0

[Event "*** Titled Tuesday Blitz"]
[Site "Chess.com"]
[Date "2020.03.03"]
[Round "9"]
[White "Monmoransy"]
[Black "SanchezKelvin"]
[Result "1-0"]
[WhiteElo "2600"]
[BlackElo "2357"]
[TimeControl "180+1"]
[EndTime "10:42:09 PST"]
[Termination "Monmoransy won by resignation"]

1. e4 {[%clk 0:03:00.9]} 1... c5 {[%clk 0:02:53.8]} 2. Nf3 {[%clk 0:03:00.8]}
2... d6 {[%clk 0:02:53.5]} 3. d4 {[%clk 0:03:00.7]} 3... cxd4 {[%clk 0:02:54.4]}
4. Qxd4 {[%clk 0:03:00.7]} 4... Nc6 {[%clk 0:02:52.5]} 5. Bb5 {[%clk 0:03:00.4]}
5... Qa5+ {[%clk 0:02:51.8]} 6. Nc3 {[%clk 0:02:59.4]} 6... Qxb5 {[%clk
0:02:51.9]} 7. Nxb5 {[%clk 0:02:59.1]} 7... Nxd4 {[%clk 0:02:52.8]} 8. Nfxd4
{[%clk 0:02:59.2]} 8... Kd8 {[%clk 0:02:53.7]} 9. c4 {[%clk 0:02:59.1]} 9... e6
{[%clk 0:02:51.8]} 10. Be3 {[%clk 0:02:54.4]} 10... a6 {[%clk 0:02:51.8]} 11.
Nc3 {[%clk 0:02:53.3]} 11... Kc7 {[%clk 0:02:51.6]} 12. Ke2 {[%clk 0:02:47.1]}
12... Bd7 {[%clk 0:02:49.1]} 13. a4 {[%clk 0:02:46.2]} 13... Ne7 {[%clk
0:02:44.7]} 14. Rhc1 {[%clk 0:02:41.9]} 14... Rc8 {[%clk 0:02:43.7]} 15. a5
{[%clk 0:02:41]} 15... Kb8 {[%clk 0:02:43]} 16. Na4 {[%clk 0:02:34.7]} 16... Nc6
{[%clk 0:02:30.2]} 17. Nb6 {[%clk 0:02:30.8]} 17... Nxd4+ {[%clk 0:02:29.6]} 18.
Bxd4 {[%clk 0:02:30.6]} 18... Rc7 {[%clk 0:02:29]} 19. Nxd7+ {[%clk 0:02:18.3]}
19... Rxd7 {[%clk 0:02:28.8]} 20. Rd1 {[%clk 0:02:16.3]} 20... Be7 {[%clk
0:02:26.5]} 21. Rd3 {[%clk 0:02:12.5]} 21... Rc8 {[%clk 0:02:11.2]} 22. b3
{[%clk 0:02:10.5]} 22... g6 {[%clk 0:02:10.1]} 23. Rad1 {[%clk 0:02:07.7]} 23...
Bd8 {[%clk 0:02:04.1]} 24. Bc3 {[%clk 0:01:58.9]} 24... Bc7 {[%clk 0:01:56.3]}
25. Bb4 {[%clk 0:01:58.7]} 25... Rcd8 {[%clk 0:01:52.7]} 26. g3 {[%clk
0:01:54.5]} 26... f5 {[%clk 0:01:50.9]} 27. e5 {[%clk 0:01:50.9]} 27... d5
{[%clk 0:01:49.9]} 28. f4 {[%clk 0:01:49.4]} 28... Kc8 {[%clk 0:01:38.3]} 29.
cxd5 {[%clk 0:01:46.2]} 29... Rxd5 {[%clk 0:01:38]} 30. Rxd5 {[%clk 0:01:43.6]}
30... Rxd5 {[%clk 0:01:38.9]} 31. Rxd5 {[%clk 0:01:37.7]} 31... exd5 {[%clk
0:01:39.3]} 32. e6 {[%clk 0:01:37.9]} 32... b6 {[%clk 0:01:36.1]} 33. Kd3 {[%clk
0:01:33]} 33... bxa5 {[%clk 0:01:24.9]} 34. Bc5 {[%clk 0:01:32.5]} 34... Kd8
{[%clk 0:01:23.6]} 35. Kd4 {[%clk 0:01:31.5]} 35... Ke8 {[%clk 0:01:22.5]} 36.
Kxd5 {[%clk 0:01:31.5]} 36... h6 {[%clk 0:01:21.7]} 37. Kc6 {[%clk 0:01:26.8]}
37... Bd8 {[%clk 0:01:21.3]} 38. h4 {[%clk 0:01:16.4]} 38... g5 {[%clk
0:01:18.3]} 39. fxg5 {[%clk 0:01:15.7]} 39... hxg5 {[%clk 0:01:18.1]} 40. h5
{[%clk 0:01:15.9]} 40... f4 {[%clk 0:01:16.8]} 41. gxf4 {[%clk 0:01:14.9]} 41...
gxf4 {[%clk 0:01:17]} 42. h6 {[%clk 0:01:14.4]} 42... Bf6 {[%clk 0:01:14.8]} 43.
h7 {[%clk 0:01:11.1]} 43... Bc3 {[%clk 0:01:13.6]} 44. Kd5 {[%clk 0:01:09.4]}
1-0

[Event "*** Titled Tuesday Blitz"]
[Site "Chess.com"]
[Date "2020.03.03"]
[Round "9"]
[White "BeanScreen"]
[Black "Mikedannnn"]
[Result "1-0"]
[WhiteElo "2646"]
[BlackElo "2527"]
[TimeControl "180+1"]
[EndTime "10:42:16 PST"]
[Termination "BeanScreen won by resignation"]

1. e4 {[%clk 0:03:00.9]} 1... c5 {[%clk 0:02:59]} 2. Nf3 {[%clk 0:03:01.5]} 2...
e6 {[%clk 0:02:58.1]} 3. d4 {[%clk 0:03:02.2]} 3... cxd4 {[%clk 0:02:59]} 4.
Nxd4 {[%clk 0:03:02.2]} 4... Nc6 {[%clk 0:02:59.7]} 5. Nc3 {[%clk 0:03:02.4]}
5... Qc7 {[%clk 0:03:00.3]} 6. g3 {[%clk 0:03:02.5]} 6... a6 {[%clk 0:03:00.3]}
7. Bg2 {[%clk 0:03:02.9]} 7... Nf6 {[%clk 0:03:00.8]} 8. O-O {[%clk 0:03:03.2]}
8... Be7 {[%clk 0:03:01.4]} 9. Re1 {[%clk 0:03:02.7]} 9... O-O {[%clk
0:03:01.2]} 10. Nxc6 {[%clk 0:02:51.5]} 10... dxc6 {[%clk 0:03:02.1]} 11. e5
{[%clk 0:02:51.3]} 11... Rd8 {[%clk 0:03:02.2]} 12. Qf3 {[%clk 0:02:48.9]} 12...
Nd5 {[%clk 0:03:02.2]} 13. Nxd5 {[%clk 0:02:31.3]} 13... cxd5 {[%clk 0:03:01.7]}
14. c3 {[%clk 0:02:31.2]} 14... b5 {[%clk 0:02:55.7]} 15. Be3 {[%clk 0:02:31.3]}
15... Bb7 {[%clk 0:02:55.1]} 16. Bd4 {[%clk 0:02:31.1]} 16... Rac8 {[%clk
0:02:50.6]} 17. Qg4 {[%clk 0:02:21.6]} 17... Bc5 {[%clk 0:02:47.3]} 18. Rad1
{[%clk 0:02:16]} 18... Qb6 {[%clk 0:02:46.8]} 19. h4 {[%clk 0:02:05.8]} 19...
Bxd4 {[%clk 0:02:46.5]} 20. Rxd4 {[%clk 0:02:05.8]} 20... Rc4 {[%clk 0:02:46.1]}
21. Red1 {[%clk 0:02:04.6]} 21... Rdc8 {[%clk 0:02:45]} 22. Bf1 {[%clk
0:01:56.6]} 22... Rxd4 {[%clk 0:02:44]} 23. Rxd4 {[%clk 0:01:57.5]} 23... a5
{[%clk 0:02:37.9]} 24. Bd3 {[%clk 0:01:48.8]} 24... Ba6 {[%clk 0:02:29.6]} 25.
Qh5 {[%clk 0:01:47.4]} 25... h6 {[%clk 0:01:55.6]} 26. Rg4 {[%clk 0:01:46.1]}
26... Kf8 {[%clk 0:01:48.7]} 27. Rf4 {[%clk 0:01:45.8]} 27... Rc7 {[%clk
0:01:44.9]} 28. Qg6 {[%clk 0:01:42.4]} 28... b4 {[%clk 0:01:42.7]} 29. Bxa6
{[%clk 0:01:39.4]} 29... Qxa6 {[%clk 0:01:32.1]} 30. Qh7 {[%clk 0:01:37.1]}
30... Rc4 {[%clk 0:00:40]} 31. Rf3 {[%clk 0:01:15.5]} 31... Rg4 {[%clk 0:00:40]}
32. Qh8+ {[%clk 0:01:12.9]} 32... Ke7 {[%clk 0:00:39.7]} 33. Qb8 {[%clk
0:01:13]} 33... Rc4 {[%clk 0:00:25.1]} 34. Qg8 {[%clk 0:01:12.7]} 1-0

[Event "*** Titled Tuesday Blitz"]
[Site "Chess.com"]
[Date "2020.03.03"]
[Round "9"]
[White "ZenBull"]
[Black "AlexTruskavetsky"]
[Result "0-1"]
[WhiteElo "2153"]
[BlackElo "2389"]
[TimeControl "180+1"]
[EndTime "10:42:19 PST"]
[Termination "AlexTruskavetsky won by resignation"]

1. Nf3 {[%clk 0:03:00.9]} 1... Nf6 {[%clk 0:02:52.7]} 2. c4 {[%clk 0:03:00.8]}
2... g6 {[%clk 0:02:50.5]} 3. Nc3 {[%clk 0:03:00.7]} 3... Bg7 {[%clk 0:02:43.7]}
4. e4 {[%clk 0:03:00.7]} 4... O-O {[%clk 0:02:41.8]} 5. d4 {[%clk 0:03:00.7]}
5... c5 {[%clk 0:02:39.2]} 6. d5 {[%clk 0:02:59.3]} 6... e6 {[%clk 0:02:37.9]}
7. h3 {[%clk 0:02:49.1]} 7... exd5 {[%clk 0:02:36.9]} 8. exd5 {[%clk 0:02:48.7]}
8... d6 {[%clk 0:02:30]} 9. Bd3 {[%clk 0:02:45.2]} 9... Re8+ {[%clk 0:02:29]}
10. Be3 {[%clk 0:02:44.5]} 10... Nfd7 {[%clk 0:02:04.9]} 11. O-O {[%clk
0:02:41]} 11... Ne5 {[%clk 0:02:03.1]} 12. Nxe5 {[%clk 0:02:37]} 12... Bxe5
{[%clk 0:02:03.9]} 13. Qd2 {[%clk 0:02:33.4]} 13... Nd7 {[%clk 0:01:58]} 14.
Rfe1 {[%clk 0:02:31.6]} 14... Nf8 {[%clk 0:01:54.7]} 15. Bf4 {[%clk 0:02:19.8]}
15... f5 {[%clk 0:01:34.5]} 16. Bxe5 {[%clk 0:02:11.3]} 16... dxe5 {[%clk
0:01:30.6]} 17. a3 {[%clk 0:01:52.6]} 17... b6 {[%clk 0:01:29.1]} 18. b4 {[%clk
0:01:51.9]} 18... e4 {[%clk 0:01:26.4]} 19. Bf1 {[%clk 0:01:50.8]} 19... Ba6
{[%clk 0:01:23]} 20. b5 {[%clk 0:01:40.2]} 20... Bb7 {[%clk 0:01:20.7]} 21. a4
{[%clk 0:01:40.7]} 21... Qd6 {[%clk 0:01:16.2]} 22. a5 {[%clk 0:01:39.6]} 22...
Nd7 {[%clk 0:01:12.6]} 23. Ra3 {[%clk 0:01:18.1]} 23... Rad8 {[%clk 0:01:10.7]}
24. axb6 {[%clk 0:01:12.4]} 24... axb6 {[%clk 0:01:08.5]} 25. Ra7 {[%clk
0:01:10.4]} 25... Bc8 {[%clk 0:01:08.3]} 26. Qh6 {[%clk 0:01:01.8]} 26... Re7
{[%clk 0:01:07]} 27. Qg5 {[%clk 0:00:45.4]} 27... Rde8 {[%clk 0:01:04.8]} 28. g3
{[%clk 0:00:42.7]} 28... Ne5 {[%clk 0:00:57.5]} 29. Rxe7 {[%clk 0:00:36.7]}
29... Nf3+ {[%clk 0:00:55.7]} 30. Kg2 {[%clk 0:00:35.1]} 30... Nxe1+ {[%clk
0:00:53.4]} 31. Kh2 {[%clk 0:00:34.5]} 0-1